bitfinex-derivatives/quotes_ETHF0:USTF0_20250629
["timestamp","ask_amount","ask_price","bid_price","bid_amount"]
[1751215497760,1.64324542,2434.1,2434.0,11.08927]
[1751215498965,0.98613542,2434.1,2434.0,11.08927]
[1751215499266,1.64324542,2434.1,2434.0,11.08927]
[1751215500357,0.98613542,2434.1,2434.0,11.08927]
[1751215500557,1.64324542,2434.1,2434.0,11.08927]
[1751215504266,0.98613542,2434.1,2434.0,11.08927]
[1751215504562,1.64324542,2434.1,2434.0,11.08927]
[1751215507469,1.64324542,2434.1,2434.0,8.93387]
[1751215509665,0.98613542,2434.1,2434.0,8.93387]
[1751215509864,0.98613542,2434.1,2434.0,10.33377]
[1751215510166,0.98613542,2434.1,2434.0,11.7157]
[1751215511067,3.10539376,2434.4,2434.1,0.6571]
[1751215511263,3.10539376,2434.4,2434.2,4.48162337]
[1751215511465,0.65703,2434.4,2434.3,1.4588]
[1751215512867,3.2078,2434.5,2434.3,1.4588]
[1751215513067,0.65703,2434.4,2434.3,1.4588]
[1751215513873,3.2078,2434.5,2434.0,34.50667]
[1751215513874,0.65709,2434.2,2434.0,34.50667]
[1751215514168,0.65707,2434.3,2434.1,1.4704]
[1751215515166,0.65707,2434.3,2434.2,9.63627]
[1751215516664,3.916,2434.5,2434.2,9.63627]
[1751215516864,3.86481,2434.5,2434.2,9.63627]
[1751215517067,0.65705,2434.3,2434.2,8.93387]
[1751215518968,1.37535,2434.3,2434.2,8.93387]
[1751215519366,2.72805,2434.3,2434.2,8.93387]
[1751215521774,5.75087337,2434.3,2434.2,8.93387]
[1751215523074,6.73374728,2434.3,2434.2,8.93387]
[1751215523474,9.18211104,2434.3,2434.2,8.93387]
[1751215523676,11.73374728,2434.3,2434.2,8.93387]
[1751215524271,6.73374728,2434.3,2434.2,8.93387]
[1751215524470,11.73374728,2434.3,2434.2,8.93387]
[1751215526876,14.94154728,2434.3,2434.2,8.93387]
[1751215527581,17.39342904,2434.3,2434.2,8.93387]
[1751215527978,11.04072904,2434.3,2434.2,8.93387]
[1751215528282,17.38872904,2434.3,2434.2,8.93387]
[1751215528583,7.87054728,2434.3,2434.2,8.93387]
[1751215529288,4.84772391,2434.3,2434.2,8.93387]
[1751215531280,7.87054728,2434.3,2434.2,8.93387]
[1751215531884,8.53754728,2434.3,2434.2,8.93387]
[1751215536188,9.94304728,2434.3,2434.2,8.93387]
[1751215539988,34.78804728,2434.3,2434.2,8.93387]
[1751215540187,42.23992904,2434.3,2434.2,8.93387]
[1751215540694,42.23992904,2434.3,2434.2,6.87998426]
[1751215541193,39.78804728,2434.3,2434.2,2.98729852]
[1751215541788,43.06318493,2434.3,2434.2,2.98729852]
[1751215542393,43.06318493,2434.3,2434.2,2.06169852]
[1751215543087,43.06318493,2434.3,2434.2,3.05e-06]
[1751215548095,39.85538493,2434.3,2434.2,3.05e-06]
[1751215548399,41.65768493,2434.3,2434.2,3.05e-06]
[1751215549502,43.00668493,2434.3,2434.2,3.05e-06]
[1751215550103,11.14568493,2434.3,2434.2,3.05e-06]
[1751215550293,42.33968493,2434.3,2434.2,3.05e-06]
[1751215551311,11.14568493,2434.3,2434.2,3.05e-06]
[1751215551602,39.06454728,2434.3,2434.2,3.05e-06]
[1751215561309,43.06948493,2434.3,2434.2,3.05e-06]
[1751215561610,44.50328493,2434.3,2434.2,3.05e-06]
[1751215562803,43.06948493,2434.3,2434.2,3.05e-06]
[1751215564312,14.46886156,2434.3,2434.2,3.05e-06]
[1751215564516,4.84772391,2434.3,2434.2,3.05e-06]
[1751215564713,36.03772391,2434.3,2434.2,3.05e-06]
[1751215564917,36.03772391,2434.3,2434.2,5.00000305]
[1751215564918,4.84772391,2434.3,2434.2,5.00000305]
[1751215566113,4.84772391,2434.3,2434.2,3.05e-06]
[1751215567213,4.84772391,2434.3,2434.2,5.00000305]
[1751215567820,3.74452391,2434.3,2434.2,5.00000305]
[1751215568119,4.40157391,2434.3,2434.2,5.00000305]
[1751215569422,1.19377391,2434.3,2434.2,5.00000305]
[1751215570219,1.19377391,2434.3,2434.2,8.02282642]
[1751215571114,1.19377391,2434.3,2434.2,5.00000305]
[1751215573218,0.53672391,2434.3,2434.2,8.67990642]
[1751215573417,2.45213352,2434.9,2434.3,0.65704]
[1751215573724,0.65698,2434.6,2434.5,3.2078]
[1751215573914,0.65698,2434.6,2434.5,4.5737]
[1751215574225,0.65698,2434.6,2434.5,9.5737]
[1751215575224,0.65698,2434.6,2434.5,9.57370305]
[1751215575522,0.65696,2434.7,2434.5,9.57370305]
[1751215575724,0.65696,2434.7,2434.6,1.44]
[1751215576617,0.65696,2434.7,2434.6,2.1025]
[1751215577923,0.65693,2434.8,2434.6,2.1025]
[1751215578120,0.65693,2434.8,2434.7,1.4073]
[1751215580224,0.65693,2434.8,2434.7,1.40730305]
[1751215583627,0.65693,2434.8,2434.7,3.05e-06]
[1751215583628,1.35193,2434.8,2434.7,3.05e-06]
[1751215583825,0.65693,2434.8,2434.7,3.05e-06]
[1751215584026,0.65693,2434.8,2434.7,1.43420305]
[1751215584529,0.65692,2434.8,2434.7,1.43420305]
[1751215585533,1.6312915,2434.8,2434.7,1.43420305]
[1751215590432,4.65411487,2434.8,2434.7,1.43420305]
[1751215592031,4.65411487,2434.8,2434.7,3.05e-06]
[1751215592334,5.36991487,2434.8,2434.7,3.05e-06]
[1751215598940,11.71291487,2434.8,2434.7,3.05e-06]
[1751215602940,13.04551487,2434.8,2434.7,3.05e-06]
[1751215603839,6.70251487,2434.8,2434.7,3.05e-06]
[1751215604044,13.04551487,2434.8,2434.7,3.05e-06]
[1751215605643,15.49764839,2434.8,2434.7,3.05e-06]
[1751215615349,13.04551487,2434.8,2434.7,3.05e-06]
[1751215615544,21.32065252,2434.8,2434.7,3.05e-06]
[1751215615746,18.04551487,2434.8,2434.7,3.05e-06]
[1751215616342,21.31664147,2434.8,2434.7,3.05e-06]
[1751215616847,18.04551487,2434.8,2434.7,3.05e-06]
[1751215623557,0.65711,2434.1,2434.0,1.3868]
[1751215623857,35.83330487,2434.1,2434.0,1.3868]
[1751215626053,10.99730487,2434.1,2434.0,1.3868]
[1751215626257,4.65430487,2434.1,2434.0,1.3868]
[1751215626557,26.4684815,2434.1,2434.0,1.3868]
[1751215626755,26.4684815,2434.1,2434.0,10.32067]
[1751215628259,29.49130487,2434.1,2434.0,10.32067]
[1751215632358,26.4684815,2434.1,2434.0,10.32067]
[1751215633559,26.4684815,2434.1,2434.0,8.24892]
[1751215633756,30.19540487,2434.1,2434.0,8.24892]
[1751215634358,0.65727,2433.5,2433.4,1.3787]
[1751215634661,34.86009337,2433.5,2433.4,0.6745]
[1751215634962,0.6574,2433.0,2432.9,0.7042]
[1751215635258,3.68022337,2433.0,2432.9,0.7042]
[1751215636464,6.88802337,2433.0,2432.9,0.7042]
[1751215637363,38.07402337,2433.0,2432.9,0.7042]
[1751215637664,38.07402337,2433.0,2432.9,9.63806999]
[1751215637865,38.07402337,2433.0,2432.9,10.32276999]
[1751215641079,39.04741847,2433.0,2432.9,10.32276999]
[1751215642764,39.04741847,2433.0,2432.9,8.93386999]
[1751215642968,42.07024184,2433.0,2432.9,8.93386999]
[1751215643168,39.04741847,2433.0,2432.9,8.93386999]
[1751215643768,42.07024184,2433.0,2432.9,8.93386999]
[1751215643975,47.07024184,2433.0,2432.9,8.93386999]
[1751215644266,42.07024184,2433.0,2432.9,6.78035999]
[1751215644471,47.07024184,2433.0,2432.9,6.78035999]
[1751215644661,48.47984184,2433.0,2432.9,6.78035999]
[1751215645274,48.47984184,2433.0,2432.9,6.12034999]
[1751215645668,48.47984184,2433.0,2432.9,5.41793999]
[1751215645871,48.47984184,2433.0,2432.9,4.49498999]
[1751215646064,48.47984184,2433.0,2432.9,3.00823999]
[1751215646266,48.47984184,2433.0,2432.9,2.30305999]
[1751215647075,48.88871654,2433.0,2432.9,2.30305999]
[1751215648376,48.88871654,2433.0,2432.9,1.61721999]
[1751215648576,1.64374,2432.7,2432.2,0.7089]
[1751215648776,0.65759,2432.3,2432.2,0.7089]
[1751215648969,31.88159,2432.3,2432.2,0.7089]
[1751215650482,31.89559,2432.3,2432.2,0.7089]
[1751215652188,0.65759,2432.3,2432.2,0.7089]
[1751215652385,31.89859,2432.3,2432.2,0.7089]
[1751215652983,0.65765,2432.1,2432.0,0.6951]
[1751215653183,28.55647337,2432.1,2432.0,0.6951]
[1751215653683,28.55647337,2432.1,2432.0,2.0642]
[1751215654083,25.53365,2432.1,2432.0,2.0642]
[1751215654289,28.55647337,2432.1,2432.0,2.0642]
[1751215655586,28.55647337,2432.1,2432.0,1.3691]
[1751215655790,1.64419,2432.0,2430.9,3.2078]
[1751215656084,9.25344674,2431.0,2430.5,2.45538867]
[1751215656287,6.23062337,2430.6,2430.2,1.54946365]
[1751215656482,6.049,2430.9,2430.3,3.2078]
[1751215656686,6.049,2430.9,2430.2,1.54946365]
[1751215656687,3.02282337,2430.4,2430.2,0.08356365]
[1751215656885,6.23062337,2430.6,2430.2,1.54946365]
[1751215657191,6.362,2430.9,2430.4,3.02282337]
[1751215657393,0.65802,2430.8,2430.6,3.2078]
[1751215657592,7.01998,2430.9,2430.7,2.0069]
[1751215657794,6.364,2430.9,2430.8,1.3434]
[1751215657988,3.02282337,2431.3,2430.8,1.3434]
[1751215658299,6.364,2431.2,2430.9,3.2078]
[1751215658494,0.65791,2431.2,2430.9,3.2078]
[1751215658701,0.65792,2431.1,2431.0,2.0598]
[1751215659191,0.658,2430.8,2430.7,0.6635]
[1751215659398,3.68082337,2430.8,2430.7,0.6635]
[1751215660698,31.94662337,2430.8,2430.7,0.6635]
[1751215661195,6.365,2431.1,2430.7,11.89412337]
[1751215661395,3.2078,2431.4,2430.7,11.89412337]
[1751215661396,0.65796,2431.0,2430.8,1.4145]
[1751215661598,0.65793,2431.1,2430.9,0.7107]
[1751215661802,0.65793,2431.1,2431.0,1.4145]
[1751215662698,0.658,2430.8,2430.7,3.8713]
[1751215662899,6.48015083,2430.8,2430.7,0.6635]
[1751215663099,12.84515083,2430.8,2430.7,0.6635]
[1751215665300,7.023,2430.8,2430.7,0.6635]
[1751215666594,3.2078,2431.1,2430.7,0.6635]
[1751215666595,0.658,2430.9,2430.7,0.6635]
[1751215666789,3.2078,2431.4,2430.8,1.4359]
[1751215666993,9.5728,2431.4,2430.8,1.4359]
[1751215667295,0.65791,2431.2,2430.8,2.09389]
[1751215667492,0.65793,2431.1,2430.8,2.09389]
[1751215667686,9.5728,2431.4,2430.8,2.09389]
[1751215668094,0.65793,2431.1,2430.8,2.0939]
[1751215668306,0.65791,2431.2,2430.8,2.0939]
[1751215668496,0.65792,2431.1,2430.8,1.4359]
[1751215668792,9.5728,2431.4,2430.8,2.09389]
[1751215668998,3.2078,2431.4,2431.1,0.65791]
[1751215669195,1.64426,2432.0,2431.1,0.65791]
[1751215669196,3.2078,2432.1,2431.3,9.02995083]
[1751215669394,7.33031067,2432.0,2431.4,2.0494]
[1751215669603,0.65781,2431.5,2431.4,2.0494]
[1751215671501,0.65781,2431.6,2431.4,2.0494]
[1751215671692,9.5728,2431.8,2431.4,2.0494]
[1751215671893,0.65781,2431.5,2431.4,2.0494]
[1751215672803,0.65779,2431.6,2431.4,2.0494]
[1751215673902,3.2078,2431.8,2431.4,2.70723]
[1751215674096,0.65773,2431.8,2431.4,2.70722]
[1751215674297,0.65769,2432.0,2431.7,0.65776]
[1751215674594,1.00418015,2431.9,2431.8,2.0963]
[1751215675097,0.6577,2431.9,2431.8,2.0963]
[1751215676501,0.65769,2432.0,2431.8,2.0963]
[1751215676894,9.5728,2432.1,2431.6,3.2078]
[1751215677105,0.65772,2431.9,2431.7,1.3401]
[1751215677306,0.65773,2431.8,2431.7,1.3401]
[1751215677505,0.65772,2431.9,2431.7,1.3401]
[1751215678708,0.65773,2431.8,2431.7,1.3401]
[1751215679109,0.65772,2431.9,2431.7,1.3401]
[1751215679310,0.65773,2431.8,2431.7,1.3401]
[1751215681213,0.65776,2431.7,2431.6,3.2078]
[1751215681712,0.65778,2431.6,2431.5,0.7178]
[1751215681907,5.82215083,2431.8,2431.3,5.2588]
[1751215682213,0.65784,2431.5,2431.3,5.2588]
[1751215682402,0.65784,2431.4,2431.3,3.2078]
[1751215685107,0.65781,2431.5,2431.3,3.2078]
[1751215685314,14.43955083,2431.8,2431.3,3.2078]
[1751215685514,0.65784,2431.4,2431.3,3.2078]
[1751215686212,0.65782,2431.5,2431.3,3.2078]
[1751215686417,7.2268,2431.8,2431.4,1.4094]
[1751215686620,0.65781,2431.5,2431.4,1.4094]
[1751215687422,0.7236,2431.9,2431.4,6.4094]
[1751215687615,0.65776,2431.7,2431.6,3.2078]
[1751215687815,1.6639435,2431.7,2431.6,3.2078]
[1751215688815,1.6639435,2431.7,2431.6,5.3699]
[1751215689314,1.0061835,2431.7,2431.6,10.3699]
[1751215689510,0.65769,2432.0,2431.7,0.65773]
[1751215689711,1.00639167,2431.9,2431.8,1.453]
[1751215690018,1.00639167,2431.9,2431.8,2.80993]
[1751215690320,1.00639167,2431.9,2431.8,7.80993]
[1751215690522,1.66409167,2431.9,2431.8,7.1522]
[1751215690727,1.00639167,2431.9,2431.8,7.1522]
[1751215690927,1.66409167,2431.9,2431.8,7.1522]
[1751215691222,0.65776,2431.7,2431.6,3.9169]
[1751215691518,0.65776,2431.7,2431.6,11.818]
[1751215691822,0.65776,2431.7,2431.6,16.818]
[1751215692015,0.65776,2431.7,2431.6,10.306]
[1751215692219,3.2078,2432.1,2431.6,10.306]
[1751215692417,1.00680604,2432.0,2431.7,0.7136]
[1751215692619,0.65768,2432.0,2431.8,1.3891]
[1751215693018,0.65768,2432.0,2431.9,3.2078]
[1751215693424,1.664423,2432.0,2431.9,3.2078]
[1751215695417,1.006743,2432.0,2431.9,3.8655]
[1751215695618,1.006743,2432.1,2431.9,5.295]
[1751215696131,1.664393,2432.1,2431.9,5.295]
[1751215696428,1.006743,2432.0,2431.9,5.295]
[1751215697628,1.0083014,2432.1,2432.0,0.65768]
[1751215698030,1.0083014,2432.1,2432.0,1.3451]
[1751215698227,1.0083014,2432.1,2432.0,2.00278]
[1751215699116,1.6659514,2432.1,2432.0,1.3451]
[1751215699927,5.65733976,2432.7,2432.0,9.37448328]
[1751215700122,0.65755,2432.5,2432.2,0.65761]
[1751215700323,0.65755,2432.5,2432.3,1.99969]
[1751215700831,0.65755,2432.5,2432.3,1.3421]
[1751215701231,6.91368328,2432.7,2432.3,1.99968]
[1751215701426,0.65754,2432.5,2432.3,1.3421]
[1751215701627,3.70588328,2432.7,2432.4,0.65757]
[1751215701827,4.36338328,2432.7,2432.4,0.65757]
[1751215702132,3.70588328,2432.7,2432.4,0.65757]
[1751215702528,0.65752,2432.6,2432.4,0.65757]
[1751215702720,4.36338328,2432.7,2432.4,0.65757]
[1751215702926,1.334,2432.7,2432.5,0.65754]
[1751215703223,1.33399,2432.7,2432.5,6.89471328]
[1751215703430,0.6765,2432.7,2432.6,1.98161]
[1751215703632,0.6765,2432.7,2432.6,1.3241]
[1751215703828,0.6765,2432.7,2432.6,1.98161]
[1751215704223,0.65744,2432.9,2432.7,0.65748]
[1751215704433,6.23718328,2433.0,2432.6,2.7513]
[1751215704632,0.65749,2432.7,2432.6,2.7513]
[1751215704827,1.32427,2432.8,2432.6,2.7513]
[1751215705028,1.32427,2432.8,2432.6,3.40881]
[1751215705526,0.6668,2432.8,2432.6,3.40881]
[1751215705921,3.2078,2433.0,2432.7,3.02938328]
[1751215706126,3.86523,2433.0,2432.7,3.68686328]
[1751215706427,3.86523,2433.0,2432.6,2.7513]
[1751215706428,0.65746,2432.8,2432.6,2.7513]
[1751215706624,3.02938328,2432.9,2432.6,0.7299]
[1751215706825,3.02938328,2432.9,2432.5,3.2078]
[1751215706826,0.65751,2432.6,2432.5,3.2078]
[1751215707530,4.38608328,2432.7,2432.5,3.2078]
[1751215710237,3.72858328,2432.7,2432.3,3.9223]
[1751215710537,0.65754,2432.5,2432.3,10.4363]
[1751215710838,3.72858328,2432.7,2432.3,10.4363]
[1751215711028,3.72858328,2432.7,2432.3,3.2078]
[1751215711232,0.65752,2432.6,2432.3,10.37939]
[1751215711430,4.38608328,2432.7,2432.3,10.37939]
[1751215712232,4.38608328,2432.7,2432.4,0.65756]
[1751215712637,0.6992,2432.7,2432.5,0.65753]
[1751215712831,1.35669,2432.7,2432.5,0.65753]
[1751215713029,1.35669,2432.7,2432.4,0.65756]
[1751215713232,1.3567,2432.7,2432.4,1.4204]
[1751215713434,1.3567,2432.7,2432.4,2.07795]
[1751215713839,1.3567,2432.7,2432.5,0.65753]
[1751215714139,1.35669,2432.7,2432.5,5.10731328]
[1751215714532,0.6992,2432.7,2432.5,5.10731328]
[1751215715238,0.6992,2432.7,2432.6,0.65751]
[1751215716335,3.9227,2433.2,2432.6,3.2078]
[1751215716542,0.65741,2433.0,2432.8,0.65744]
[1751215716836,0.65744,2432.9,2432.7,5.09105328]
[1751215717040,0.65744,2432.9,2432.7,3.68685328]
[1751215717340,2.1208,2433.1,2432.8,0.65746]
[1751215717533,1.6496881,2433.0,2432.8,0.65746]
[1751215717730,2.77819,2433.1,2432.9,0.65743]
[1751215717934,0.9922598,2433.0,2432.9,0.65743]
[1751215718135,1.6496598,2433.0,2432.8,0.65744]
[1751215718433,0.6574,2433.0,2432.8,0.65744]
[1751215718641,2.77819,2433.1,2432.9,0.65743]
[1751215718843,0.99241929,2433.0,2432.9,0.65743]
[1751215719544,1.64982929,2433.0,2432.8,0.65744]
[1751215719744,0.65741,2433.0,2432.8,0.65744]
[1751215719938,2.1208,2433.1,2432.7,3.02938328]
[1751215720132,1.65005801,2433.0,2432.8,0.65745]
[1751215720338,0.65743,2432.9,2432.7,3.68685328]
[1751215720537,0.65742,2433.0,2432.8,0.65746]
[1751215721047,2.7782,2433.1,2432.9,0.65743]
[1751215721241,0.99280627,2433.0,2432.9,0.65743]
[1751215722055,1.3649,2433.1,2432.9,0.65743]
[1751215722748,0.65741,2433.0,2432.8,0.65744]
[1751215722947,0.7075,2433.1,2432.8,0.65744]
[1751215723147,0.65742,2433.0,2432.7,3.02938328]
[1751215723353,0.65742,2433.0,2432.8,0.65744]
[1751215723554,0.65742,2433.0,2432.8,1.98954]
[1751215723750,1.3649,2433.1,2432.9,0.65742]
[1751215724656,0.7075,2433.1,2432.9,0.65742]
[1751215724849,0.7075,2433.1,2433.0,0.65741]
[1751215725044,1.70093076,2433.1,2433.0,0.65741]
[1751215725243,1.70093076,2433.1,2433.0,2.12611]
[1751215726051,0.99343076,2433.1,2433.0,10.33391]
[1751215726249,3.9145,2433.5,2433.4,0.6573]
[1751215726451,4.90809705,2433.5,2433.4,0.6573]
[1751215726852,4.90809705,2433.5,2433.4,3.8651]
[1751215726853,1.70029705,2433.5,2433.4,3.8651]
[1751215727159,0.99359705,2433.5,2433.4,5.2191]
[1751215728554,0.99359705,2433.5,2433.4,8.24848328]
[1751215730458,1.36392,2433.7,2433.5,0.65727]
[1751215730659,0.9940725,2433.6,2433.5,0.65727]
[1751215731252,1.6513125,2433.6,2433.4,8.24846328]
[1751215731454,0.7067,2433.7,2433.6,0.65724]
[1751215731650,1.70020192,2433.7,2433.6,0.65724]
[1751215731856,0.99350192,2433.7,2433.6,3.68662328]
[1751215732163,3.8981,2434.1,2433.9,0.65714]
[1751215732356,0.99349839,2434.0,2433.9,3.68652328]
[1751215732555,0.99349839,2434.0,2433.9,0.65714]
[1751215732756,0.99349839,2434.0,2433.9,6.512]
[1751215733253,1.65063839,2434.0,2433.9,6.512]
[1751215736065,1.65063839,2434.0,2433.7,8.23178328]
[1751215736066,0.65717,2433.9,2433.8,6.511]
[1751215736266,1.65066839,2433.9,2433.8,6.511]
[1751215736562,0.65719,2433.8,2433.7,3.2078]
[1751215736761,1.65068839,2433.8,2433.7,3.2078]
[1751215738462,0.99349839,2433.8,2433.7,6.89440328]
[1751215738660,0.6903,2434.1,2433.7,6.23718328]
[1751215738865,0.6903,2434.1,2434.0,3.68652328]
[1751215739162,0.99347681,2434.1,2434.0,3.68651328]
[1751215740663,0.99347681,2434.1,2434.0,6.89431328]
[1751215741858,1.32217,2434.3,2434.1,0.6571]
[1751215742061,0.6651,2434.3,2434.2,3.68646328]
[1751215742367,0.65703,2434.4,2434.2,3.68646328]
[1751215742565,0.65703,2434.4,2434.2,5.10196328]
[1751215742959,0.65703,2434.4,2434.2,3.68646328]
[1751215743569,1.36052,2434.5,2434.2,5.10196328]
[1751215743866,0.99291786,2434.4,2434.2,5.10194328]
[1751215744068,0.65703,2434.4,2434.2,5.10194328]
[1751215744270,0.65703,2434.4,2434.2,5.82564328]
[1751215744468,0.7035,2434.5,2434.4,0.65703]
[1751215744676,0.7035,2434.5,2434.4,3.68641328]
[1751215744967,1.3605,2434.5,2434.4,3.02938328]
[1751215745567,0.7035,2434.5,2434.4,3.68641328]
[1751215745865,0.6976,2434.9,2434.7,0.65692]
[1751215746071,0.99239657,2434.8,2434.7,3.68630328]
[1751215746265,0.6569,2434.9,2434.7,3.68631328]
[1751215746462,0.65692,2434.8,2434.6,0.6763]
[1751215746663,0.65691,2434.9,2434.6,0.65697]
[1751215746971,0.65691,2434.9,2434.6,2.00767]
[1751215747171,0.65691,2434.9,2434.7,0.65695]
[1751215747571,0.7236,2435.0,2434.7,9.50138328]
[1751215747871,1.38049,2435.0,2434.8,0.65692]
[1751215748172,0.7236,2435.0,2434.8,0.65692]
[1751215748471,1.38047,2435.0,2434.8,2.07552]
[1751215748662,3.8646,2435.3,2435.0,0.65685]
[1751215748857,1.64796073,2435.2,2435.1,3.02938328]
[1751215749060,0.99115073,2435.2,2435.1,3.68622328]
[1751215749273,3.9314,2435.3,2435.1,3.68622328]
[1751215749468,4.5882,2435.3,2435.2,3.02938328]
[1751215749669,5.58194793,2435.3,2435.2,3.02938328]
[1751215750466,4.92514793,2435.3,2435.0,3.02938328]
[1751215750774,0.65684,2435.1,2435.0,6.471]
[1751215751162,3.9314,2435.3,2435.0,9.50038328]
[1751215751372,1.3804,2435.3,2435.0,11.48693328]
[1751215751671,1.3804,2435.3,2435.0,11.48694328]
[1751215751875,0.7236,2435.3,2435.1,0.65684]
[1751215752074,1.38039,2435.3,2435.0,11.48693328]
[1751215752278,0.7236,2435.3,2435.0,11.48693328]
[1751215752667,0.7236,2435.3,2434.9,3.2078]
[1751215752872,0.7236,2435.3,2435.0,6.47]
[1751215753081,0.99273286,2435.2,2435.0,0.65686]
[1751215753273,0.99273286,2435.1,2435.0,6.47]
[1751215753779,0.99273286,2435.1,2435.0,9.49938328]
[1751215754372,0.99273286,2435.1,2435.0,11.48594328]
[1751215754774,0.99273286,2435.1,2434.9,3.86468]
[1751215754974,0.99273286,2435.0,2434.9,3.86468]
[1751215755165,0.99273286,2435.0,2434.9,10.33468]
[1751215755363,0.99353882,2435.1,2435.0,0.65686]
[1751215755573,1.3804,2435.3,2435.1,0.65684]
[1751215755874,0.99306679,2435.2,2435.1,0.65684]
[1751215756074,0.99306679,2435.2,2434.9,11.1194]
[1751215756274,0.99306679,2435.1,2435.0,0.65687]
[1751215756571,0.99334217,2435.2,2435.0,3.68622328]
[1751215756769,0.99334217,2435.1,2435.0,3.68622328]
[1751215757662,0.99334217,2435.1,2435.0,5.06642328]
[1751215758069,0.99334217,2435.1,2435.0,5.75892328]
[1751215759766,0.99334217,2435.1,2435.0,5.10208328]
[1751215759971,0.99334217,2435.1,2435.0,3.02938328]
[1751215760274,0.99334217,2435.1,2435.0,3.68624328]
[1751215760677,0.99334217,2435.1,2435.0,3.02938328]
[1751215760977,0.99334217,2435.1,2435.0,3.68625328]
[1751215764678,0.99334217,2435.1,2435.0,3.02938328]
[1751215764977,0.99334217,2435.1,2435.0,3.68624328]
[1751215765480,0.99334217,2435.1,2434.9,3.2078]
[1751215765680,1.65020217,2435.0,2434.9,3.2078]
[1751215765882,2.35010217,2435.0,2434.9,3.2078]
[1751215766580,1.69324217,2435.0,2434.6,6.469]
[1751215766781,0.65693,2434.8,2434.6,6.469]
[1751215767080,1.65029217,2434.7,2434.6,6.469]
[1751215767974,0.65697,2434.6,2434.5,3.2078]
[1751215768172,1.65031217,2434.6,2434.5,3.2078]
[1751215769274,3.00201217,2434.6,2434.5,3.2078]
[1751215770074,0.6667,2434.9,2434.5,3.86478]
[1751215770274,0.65695,2434.7,2434.5,3.2078]
[1751215770980,0.65697,2434.6,2434.5,3.2078]
[1751215771582,0.65697,2434.6,2434.4,3.02938328]
[1751215771775,1.3839,2434.5,2434.3,31.483]
[1751215771975,0.7269,2434.5,2434.3,31.483]
[1751215772579,1.3839,2434.5,2434.3,6.469]
[1751215772782,1.3839,2434.5,2434.3,31.483]
[1751215773081,0.65703,2434.4,2434.3,31.483]
[1751215773380,1.38392,2434.5,2434.3,31.483]
[1751215773781,0.65703,2434.4,2434.3,31.483]
[1751215774371,1.38392,2434.5,2434.3,31.483]
[1751215774777,0.7269,2434.5,2434.3,31.483]
[1751215775083,1.3839,2434.5,2434.3,31.483]
[1751215775282,0.65703,2434.4,2434.3,31.483]
[1751215775583,0.65703,2434.4,2434.3,6.469]
[1751215775778,1.65797057,2434.4,2434.3,31.478]
[1751215775983,0.65705,2434.3,2434.2,3.2078]
[1751215776180,0.65705,2434.3,2434.2,28.2208]
[1751215776687,0.65709,2434.2,2434.0,0.7335]
[1751215776876,0.65711,2434.1,2434.0,6.448]
[1751215777081,1.33291,2434.1,2434.0,31.463]
[1751215777981,0.6758,2434.1,2434.0,31.463]
[1751215778984,0.6758,2434.1,2434.0,32.12013]
[1751215779292,0.6758,2434.1,2434.0,35.14951328]
[1751215779589,0.6758,2434.1,2434.0,36.54351328]
[1751215779781,0.6758,2434.1,2434.0,35.88638328]
[1751215780889,0.6758,2434.1,2434.0,36.54352328]
[1751215781486,0.6758,2434.1,2434.0,35.88638328]
[1751215781686,0.6758,2434.1,2434.0,36.54352328]
[1751215782390,0.6758,2434.1,2434.0,35.88638328]
[1751215782593,1.33291,2434.1,2434.0,35.88638328]
[1751215782795,0.6758,2434.1,2434.0,36.54351328]
[1751215783592,0.6758,2434.1,2434.0,11.52851328]
[1751215783790,0.6758,2434.1,2433.9,28.2098]
[1751215783992,0.65713,2434.0,2433.9,28.2098]
[1751215785697,0.65713,2434.0,2433.9,3.2078]
[1751215785998,1.33292,2434.1,2433.9,28.2098]
[1751215786297,0.65714,2434.0,2433.9,28.2098]
[1751215786590,1.65773013,2434.0,2433.9,28.2098]
[1751215786997,1.65773013,2434.0,2433.9,3.2078]
[1751215787297,1.65773013,2434.0,2433.9,28.2108]
[1751215787793,1.00059013,2434.0,2433.9,28.2108]
[1751215788197,0.65713,2434.0,2433.9,28.2108]
[1751215789398,1.33293,2434.1,2433.9,28.2108]
[1751215789597,0.65714,2434.0,2433.9,28.2108]
[1751215789796,0.65714,2434.0,2433.9,3.2078]
[1751215789996,0.65714,2434.0,2433.9,28.2018]
[1751215791002,0.65714,2434.0,2433.9,28.2008]
[1751215794203,0.65714,2434.0,2433.9,3.2078]
[1751215794401,0.65714,2434.0,2433.9,28.1928]
[1751215794600,0.65719,2433.8,2433.7,1.3466]
[1751215794898,0.6758,2434.1,2433.7,32.7786]
[1751215795203,0.65715,2434.0,2433.7,33.43581]
[1751215795396,0.65715,2434.0,2433.8,1.4639]
[1751215796704,0.65716,2433.9,2433.8,1.4639]
[1751215799703,0.65716,2433.9,2433.8,26.4319]
[1751215800896,1.33292,2434.1,2433.9,0.65715]
[1751215801101,1.33292,2434.1,2434.0,1.3401]
[1751215801308,2.32955807,2434.1,2434.0,1.3401]
[1751215801909,0.65716,2433.9,2433.8,27.99738328]
[1751215802112,1.67243807,2434.1,2433.8,27.99738328]
[1751215802113,0.65715,2434.0,2433.8,29.99467328]
[1751215802407,0.65715,2434.0,2433.9,1.3401]
[1751215802605,1.65399707,2434.0,2433.9,1.3401]
[1751215802909,0.6894,2434.4,2433.9,4.5479]
[1751215803210,0.65711,2434.1,2434.0,25.6484]
[1751215803509,1.65396642,2434.1,2434.0,27.7611]
[1751215804403,0.99685642,2434.1,2434.0,28.41824]
[1751215804603,0.99685642,2434.1,2434.0,31.44762328]
[1751215804804,1.65396642,2434.1,2434.0,30.79048328]
[1751215805309,1.65396642,2434.1,2434.0,37.20448328]
[1751215805609,1.65396642,2434.1,2434.0,37.86162328]
[1751215806609,0.99685642,2434.1,2434.0,37.86162328]
[1751215806807,3.86481,2434.5,2434.3,0.65704]
[1751215807012,0.65697,2434.6,2434.4,27.98938328]
[1751215807206,0.65697,2434.6,2434.5,0.7075]